[Event "Azerbaijan-ch 1st League 2025"]
[Site "Baku"]
[Date "2025.01.14"]
[Round "9.16"]
[White "Safarli, Ramzi"]
[Black "Huseynov, Ahmed"]
[Result "1-0"]
[Annotator "TA"]
[ECO "D02"]
[WhiteElo "1792"]
[BlackElo "1996"]
[PlyCount "165"]
[EventDate "2025.01.05"]
[EventType "swiss"]
[EventCountry "AZE"]
[SourceTitle "playchess.com"]
[Source "ChessBase"]
[SourceQuality "1"]
[TimeControl "40/5400+30:1800+30"]

{[%evp 22,165,-22,-22,5,8,0,6,8,7,12,0,0,0,0,0,0,0,0,0,11,0,30,-27,-37,-18,-29,-72,0,0,0,0,0,0,0,0,0,-63,-70,-258,-258,-258,-258,-252,-245,-264,-253,-257,-257,-245,-244,-258,-258,-253,-265,-305,-183,-161,-170,-185,-164,-166,-112,-129,-52,-52,-52,-52,-20,-22,-23,-29,-29,-29,-30,-56,-18,-40,-14,-22,-18,-16,-18,-17,-16,-57,-29,-167,-41,-146,-21,-21,-19,-29,0,0,48,75,167,74,82,87,377,385,311,297,269,269,594,417,833,746,650,564,29967,5724,29974,29977,29977,29977,29974,29973,29980,29982,29981,29982,29982,29983,29984,29985,29985,29983,29983,29983,29984,29985,29985,29986,29986,29987,29987,29988,29989,29990,29990,29991]} 1. d4 {[%emt 0:05:49]} c5 {[%emt 0:00:08]} 2. c3 {[%emt 0:00:58]} d5 {[%emt 0:02:45]} 3. Nf3 {[%emt 0:00:12]} Nf6 {[%emt 0:00:58]} 4. Bf4 {[%emt 0:00:41]} Nc6 {[%emt 0:00:51]} 5. e3 {[%emt 0:01:22]} Qb6 {[%emt 0:03:00]} 6. Qc1 {[%emt 0:01:41]} Bf5 {[%emt 0:00:29]} 7. Nbd2 {[%emt 0:00:08]} e6 {[%emt 0:00:27]} 8. Be2 {[%emt 0:00:30][%cal Bf1e2,Be2d1,Bd1c2][%mdl 32]} h6 {[%emt 0:04:37]} 9. h3 {[%emt 0:00:26]} Rc8 {[%emt 0:01:26]} 10. O-O {[%emt 0:05:29]} Be7 {[%emt 0:02:26]} 11. Nb3 {[%emt 0:19:17]} c4 {[%emt 0:17:16]} 12. Nbd2 {[%emt 0:00:04]} Na5 {[%emt 0:00:14]} 13. Bd1 {[%emt 0:01:12]} O-O {[%emt 0:03:56]} 14. Bc2 {[%emt 0:00:11]} a6 {[%emt 0:05:30]} 15. Re1 {[%emt 0:04:01]} Qd8 {[%emt 0:03:47]} 16. e4 {[%emt 0:03:06]} dxe4 {[%emt 0:03:18]} 17. Nxe4 {[%emt 0:00:41]} Nd5 {[%emt 0:04:05]} 18. Bd2 {[%emt 0:06:25]} Nc6 {[%emt 0:03:11]} 19. Ng3 {[%emt 0:07:53]} Bxc2 {[%emt 0:03:03]} 20. Qxc2 {[%emt 0:00:30]} Qc7 {[%emt 0:04:40]} 21. Nh5 $1 {[%emt 0:09:33][%cal Od2h6]} Bd6 {[%emt 0:04:27]} 22. Qc1 {[%emt 0:00:06]} (22. Re4 $1) 22... Rfe8 $11 {[%emt 0:15:45]} 23. Re4 {[%emt 0:06:02][%cal Oh5g7]} f5 {[%emt 0:01:21]} 24. Rh4 {[%emt 0:00:34][%cal Od2h6]} Qf7 {[%emt 0:04:32]} (24... Bf8 $17) 25. Bxh6 {[%emt 0:12:02]} gxh6 {[%emt 0:00:17]} 26. Qxh6 {[%emt 0:00:03]} Be7 {[%emt 0:00:35]} 27. Ng5 $1 {[%emt 0:01:02] Really sharp!} Bxg5 {[%emt 0:00:24]} 28. Qxg5+ {[%emt 0:00:01]} Kf8 {[%emt 0:00:35]} 29. Nf4 {[%emt 0:00:37]} (29. Re1 $11) 29... Qf6 $15 {[%emt 0:02:11]} 30. Ng6+ $2 {[%emt 0:01:04]} ({Better is} 30. Rh8+ $1 $15 Qxh8 31. Ng6+ Kf7 32. Nxh8+ Rxh8 33. Kh2) 30... Kg7 $19 {[%emt 0:09:16]} 31. Qh6+ {[%emt 0:01:01]} Kf7 {[%emt 0:00:00]} 32. Qh7+ {[%emt 0:02:00]} Qg7 {[%emt 0:00:00]} 33. Qxg7+ {[%emt 0:00:40]} Kxg7 {[%emt 0:00:00]} 34. Nf4 {[%emt 0:00:03]} Nxf4 {[%emt 0:00:00]} 35. Rxf4 {[%emt 0:00:02]} Ne7 {[%emt 0:00:00]} 36. Re1 {[%emt 0:00:52]} Nd5 {[%emt 0:00:00]} 37. Rh4 {[%emt 0:00:00]} Rc6 {[%emt 0:00:00]} 38. g4 {[%emt 0:00:57]} Rh8 {[%emt 0:00:00]} 39. Rxh8 {[%emt 0:00:32]} Kxh8 {[%emt 0:00:00]} 40. gxf5 {[%emt 0:00:00]} exf5 {[%emt 0:00:00][%mdl 4096] Endgame KRN-KR} 41. Re5 {[%emt 0:00:59]} Rg6+ {[%emt 0:07:21]} (41... Nf4 $19 42. Rxf5 Rg6+ (42... Nxh3+ 43. Kg2 $11) 43. Kf1 Nd3 (43... Nxh3 44. Rh5+ Kg7 45. Rxh3 $16)) 42. Kf1 $17 {[%emt 0:00:12]} Nf4 {[%emt 0:03:48]} (42... Nb6 $1 $17 {and ...Na4 would now be decisive} 43. Rxf5 Na4) 43. Rxf5 $15 {[%emt 0:01:33]} Nd3 {[%emt 0:00:03]} (43... Nxh3 44. Rh5+ Kg7 45. Rxh3 $16) 44. b3 {[%emt 0:01:57]} b5 {[%emt 0:00:29]} 45. bxc4 {[%emt 0:00:27]} bxc4 {[%emt 0:00:03]} 46. Rf8+ {[%emt 0:00:10]} Kg7 {[%emt 0:00:40]} 47. Rc8 $1 {[%emt 0:00:01]} Rf6 {[%emt 0:02:37]} 48. a4 {[%emt 0:00:32][%cal Of1e2]} Nb2 {[%emt 0:01:49][%cal Of6f3]} (48... Nxf2 49. Rxc4 Nxh3+ 50. Ke2 $17) 49. a5 {[%emt 0:00:29]} Kg6 {[%emt 0:10:49]} 50. Kg2 {[%emt 0:01:18]} Kg5 {[%emt 0:01:53]} 51. Kg3 {[%emt 0:00:11]} Kf5 {[%emt 0:00:31]} 52. Kf3 {[%emt 0:01:14]} Ke6+ {[%emt 0:00:25]} 53. Ke2 {[%emt 0:00:14]} Kd5 {[%emt 0:00:24]} 54. h4 {[%emt 0:01:30]} (54. Rc5+ $11 Ke4 55. Re5+ Kf4 56. Rc5) 54... Nd3 {[%emt 0:00:36]} ({Black should try} 54... Na4 $1 $19 {[%cal Ra4c3]} 55. Ke3 Nxc3 56. Rc5+ Kd6 57. Rxc4 Nd5+ 58. Ke2 Rh6) 55. f3 {[%emt 0:00:31]} (55. Ke3 $1 $15) 55... Nc1+ {[%emt 0:01:20]} (55... Rh6 $1 $17 56. Rd8+ Kc6) 56. Ke3 {[%emt 0:00:12]} Re6+ {[%emt 0:00:24]} 57. Kf4 {[%emt 0:00:02]} Rf6+ {[%emt 0:00:46]} 58. Kg4 {[%emt 0:00:17]} Nb3 {[%emt 0:01:42]} (58... Ne2 $11 59. Rc5+ Kd6) 59. h5 $14 {[%emt 0:00:42][%cal Bh4h5,Bh5h6][%mdl 32]} Kd6 {[%emt 0:00:04] [#]} (59... Nd2 $16) 60. Rxc4 {[%emt 0:00:44]} (60. f4 $1 $18 {and White stays clearly on top.}) 60... Rf8 {[%emt 0:00:42]} 61. h6 {[%emt 0:00:52]} Nxa5 $2 {[%emt 0:04:22][%mdl 8192]} (61... Rf6 $16 {was worth a try.}) 62. Ra4 $18 {[%emt 0:00:18]} Nc6 {[%emt 0:00:10]} 63. Rxa6 {[%emt 0:00:05]} Kc7 {[%emt 0:00:14]} 64. f4 {[%emt 0:00:29] aiming for d5.} Ne7 $2 {[%emt 0:00:06]} (64... Kb7 {is a better chance.}) 65. c4 {[%emt 0:00:45]} Nf5 {[%emt 0:00:04]} (65... Rg8+ $142 66. Kf3 (66. Kh5 Rg1 $18) 66... Rg1) 66. d5 {[%emt 0:00:26]} Ne3+ {[%emt 0:01:21]} 67. Kf3 {[%emt 0:01:27]} Nxc4 {[%emt 0:00:09]} 68. Rc6+ {[%emt 0:00:05]} Kd7 {[%emt 0:00:09]} 69. Rxc4 {[%emt 0:00:01] KR-KR. White is 3 pawns up.} Kd6 {[%emt 0:00:16]} 70. Rc6+ {[%emt 0:00:32]} Kxd5 {[%emt 0:00:09]} 71. Rg6 {[%emt 0:00:03]} Rf7 {[%emt 0:00:09]} 72. Kg4 {[%emt 0:00:21]} Rc7 {[%emt 0:00:23]} 73. Kg5 {[%emt 0:00:20]} Ke4 {[%emt 0:00:24]} 74. f5 {[%emt 0:00:21]} Rc2 {[%emt 0:00:22]} 75. Re6+ {[%emt 0:00:08]} Kd5 {[%emt 0:00:20]} 76. Kg6 {[%emt 0:00:16]} Rg2+ {[%emt 0:00:23]} 77. Kf7 {[%emt 0:00:12]} Rh2 {[%emt 0:00:14]} 78. Kg7 {[%emt 0:00:03]} Rc2 {[%emt 0:00:21]} 79. h7 {[%emt 0:00:43]} Rc7+ {[%emt 0:00:37]} 80. Kg8 {[%emt 0:00:12]} Rc8+ {[%emt 0:00:36] [#]} 81. Kf7 $1 {[%emt 0:00:03]} Rb8 {[%emt 0:00:38]} 82. Re8 {[%emt 0:00:06]} Rb7+ {[%emt 0:00:09]} 83. Kg8 {[%emt 0:00:02]} 1-0

[Event "Azerbaijan-ch 1st League 2025"]
[Site "Baku"]
[Date "2025.01.14"]
[Round "9.17"]
[White "Imranli, Kenan"]
[Black "Garakhanov, Shamsi"]
[Result "1/2-1/2"]
[Annotator "NA RC"]
[ECO "B22"]
[WhiteElo "1758"]
[BlackElo "2022"]
[PlyCount "89"]
[EventDate "2025.01.05"]
[EventType "swiss"]
[EventCountry "AZE"]
[SourceTitle "playchess.com"]
[Source "ChessBase"]
[SourceQuality "1"]
[TimeControl "40/5400+30:1800+30"]

1. e4 {[%emt 0:00:03]} c5 {[%emt 0:00:06]} 2. c3 {[%emt 0:00:03]} Nf6 {[%emt 0:00:03]} 3. e5 {[%emt 0:00:04]} Nd5 {[%emt 0:00:05]} 4. d4 {[%emt 0:00:07]} cxd4 {[%emt 0:00:05]} 5. cxd4 {[%emt 0:00:04]} d6 {[%emt 0:00:46]} 6. Nf3 {[%emt 0:00:33]} Nc6 {[%emt 0:00:38]} 7. Bc4 {[%emt 0:00:07]} Nb6 {[%emt 0:00:52]} 8. Bb5 {[%emt 0:00:17]} dxe5 {[%emt 0:01:01]} 9. Nxe5 {[%emt 0:00:09]} Bd7 {[%emt 0:00:21]} 10. Nxd7 {[%emt 0:00:07]} Qxd7 {[%emt 0:00:14]} 11. O-O {[%emt 0:00:26]} e6 {[%emt 0:00:23]} 12. Nc3 {[%emt 0:01:20]} Be7 {[%emt 0:06:00]} 13. Be3 {[%emt 0:01:30] B22: Sicilian: 2 c3.} O-O {[%emt 0:02:13]} 14. Qd2 {[%emt 0:02:50]} a6 {[%emt 0:02:19]} 15. Bd3 {[%emt 0:00:12]} Nb4 {[%emt 0:01:43]} 16. Rfd1 {[%emt 0:01:44]} Nxd3 {[%emt 0:00:21]} 17. Qxd3 {[%emt 0:00:06]} Nd5 {[%emt 0:01:43]} 18. Rac1 {[%emt 0:02:28]} Rac8 {[%emt 0:02:14]} 19. Nxd5 {[%emt 0:05:20]} Qxd5 {[%emt 0:00:10]} 20. Qb3 {[%emt 0:00:38]} Qd7 {[%emt 0:08:29]} 21. g3 {[%emt 0:01:53]} h6 {[%emt 0:03:14]} 22. d5 {[%emt 0:03:21]} Rxc1 {[%emt 0:01:36]} 23. Rxc1 {[%emt 0:00:59]} exd5 {[%emt 0:01:25]} 24. Rd1 {[%emt 0:00:05]} Rd8 {[%emt 0:01:40]} 25. Bb6 {[%emt 0:00:21]} Rc8 {[%emt 0:00:46]} 26. Qxd5 {[%emt 0:02:26]} Qxd5 {[%emt 0:05:18]} 27. Rxd5 {[%emt 0:00:14]} Rc2 {[%emt 0:01:05]} 28. b3 {[%emt 0:01:57]} Rxa2 {[%emt 0:01:09]} 29. Rd7 {[%emt 0:00:20]} Bf6 {[%emt 0:00:35]} 30. Rxb7 {[%emt 0:00:22]} h5 {[%emt 0:00:54]} 31. h4 {[%emt 0:02:13]} Be5 {[%emt 0:00:42]} 32. Be3 {[%emt 0:01:54]} g6 $11 {[%emt 0:01:11]} 33. Re7 {[%emt 0:00:52]} Bc3 {[%emt 0:00:50]} 34. Rc7 {[%emt 0:00:29]} Ba1 {[%emt 0:00:29]} 35. b4 {[%emt 0:01:29]} Kg7 {[%emt 0:00:38]} 36. Ra7 {[%emt 0:00:13]} Bc3 {[%emt 0:00:26]} 37. Bc5 {[%emt 0:00:18]} Kf6 {[%emt 0:00:53]} 38. Kg2 {[%emt 0:00:11]} Ra4 {[%emt 0:00:35]} 39. Kf3 {[%emt 0:01:23]} Bxb4 {[%emt 0:05:46]} 40. Bxb4 {[%emt 0:00:00]} Rxb4 {[%emt 0:00:00]} 41. Rxa6+ {[%emt 0:01:07]} Kg7 {[%emt 0:00:30]} 42. Ra7 {[%emt 0:00:08]} Rb6 {[%emt 0:00:13]} 43. Rc7 {[%emt 0:00:11]} Rb2 {[%emt 0:00:58]} 44. Ra7 {[%emt 0:00:07]} Rb3+ {[%emt 1:21:51]} 45. Ke4 1/2-1/2